Cogmind - Beta 13 @@@ ROGUE MODE // 2024.04.30 @ 19:59:16 // AFD2020/Player2 Player: cptwinky Result: Core destroyed Performance ------------- Evolutions (0) 0 Regions Visited (2) 400 Robots Destroyed (9) 45 Value Destroyed (267) 267 Prototype IDs (0) 0 Alien Tech Used (0) 0 Bonus (45) 45 TOTAL SCORE: 757 Bonus ------- Follower Combat Kills 180 Friendly Fire -135 Cogmind --------- Core Integrity 0/250 Matter 240/300 Energy 156/160 System Corruption 1% Temperature Warm (102) Movement Walking (190) Ox1 Location -10/Mines Parts ------- > --- POWER (1) -------- Light Nuclear Core > --- PROPULSION (2) --- Aluminum Leg Aluminum Leg > --- UTILITY (2) ------ Large Storage Unit Backup Plating I > --- WEAPON (2) ------- Light Cannon Light Cannon > --- INVENTORY (15) --- Aluminum Leg Wheel Wheel Transport Network Coupler Targeting Computer ECM Suite Light Armor Plating Light Armor Plating Shield Generator Shield Generator Light Cannon Light Cannon Rocket Launcher Datajack Mining Laser Peak State ------------ > --- POWER ------------ Light Nuclear Core > --- PROPULSION ------- Aluminum Leg Aluminum Leg > --- UTILITY ---------- Medium Storage Unit Backup Plating I > --- WEAPON ----------- Light Cannon Light Cannon > --- INVENTORY -------- Aluminum Leg Wheel Wheel Transport Network Coupler ECM Suite Light Armor Plating Light Armor Plating Light Cannon Light Cannon Mining Laser [Rating: 10] Favorites ----------- Power Light Nuclear Core Engine Light Ion Engine Power Core Light Nuclear Core Propulsion Aluminum Leg Leg Aluminum Leg Utility Backup Plating I Storage Large Storage Unit Protection Backup Plating I Weapon Light Cannon Ballistic Gun Assault Rifle Ballistic Cannon Light Cannon Special Weapon Mining Laser Build | -11 -10 -10 ------- Run | Yrd Mat Min Slots Evolved . | . . . Power . | . . . Propulsion . | . . . Utility . | . . . Weapon . | . . . Parts Attached 8 | . 5 3 Power 1 | . 1 . Engine . | . . . Core 1 | . 1 . Reactor . | . . . Propulsion 1 | . . 1 Treads . | . . . Leg 1 | . . 1 Wheel . | . . . Hover . | . . . Flight . | . . . Utility 2 | . 2 . Device . | . . . Storage 2 | . 2 . Processor . | . . . Hackware . | . . . Protection . | . . . Artifact . | . . . Weapon 4 | . 2 2 Energy Gun . | . . . Energy Cannon . | . . . Ballistic Gun . | . . . Ballistic Cannon 3 | . 2 1 Launcher . | . . . Special Weapon 1 | . . 1 Impact Weapon . | . . . Slashing Weapon . | . . . Piercing Weapon . | . . . Special Melee Weapon . | . . . Unidentified Prototypes . | . . . Parts Lost 2 | . 1 1 Power 1 | . 1 . Propulsion 1 | . . 1 Utility . | . . . Weapon . | . . . Highest Loss Streak 1 | . 1 1 To Critical Strikes . | . . . Average Slot Usage (%) 98 | . 97 100 Engine 3 | . 6 . Core 9 | . 6 14 Leg 28 | . 28 28 Storage 14 | . 14 14 Protection 13 | . 13 14 Ballistic Gun 8 | . 15 . Ballistic Cannon 19 | . 12 27 Naked Turns . | . . . Heaviest Build 32 | 11 32 32 Greatest Support 20 | 20 20 20 Greatest Overweight (x) 1 | . 1 1 Average Overweight (x) . | . . 1 Largest Inventory Capacity 15 | 8 15 15 Average Capacity 12 | 8 11 15 Most Carried 15 | 6 13 15 Average Carried 10 | 6 8 13 Final Capacity 15 | 8 15 15 Final Carried 15 | 6 13 15 Class Distribution -------------------- 100% | Mutant Dominant Class ---------------- Mutant | -10/Materials Mutant | -10/Mines Resources | -11 -10 -10 ----------- Run | Yrd Mat Min Matter Collected 447 | 175 194 78 Remotely . | . . . Salvage Created 272 | . 222 50 Parts 15 | . 10 5 Haulers Intercepted . | . . . Recyclers Shooed 2 | . 2 . Parts Field Recycled . | . . . Retrieved Matter . | . . . Parts Self-Destructed . | . . . Prevented . | . . . Kills | -11 -10 -10 ------- Run | Yrd Mat Min Combat Hostiles Destroyed 9 | . 6 3 Guns 3 | . 3 . Cannons 6 | . 3 3 Classes Destroyed 2 | . 2 . Swarmer 3 | . 1 2 Grunt 6 | . 5 1 Best Kill Streak 2 | . 2 1 Combat Bots Only 2 | . 2 1 Max Kills in Single Turn 1 | . 1 1 Gunslinging . | . . . Exploded . | . . . Melee . | . . . Uniques/NPCs Destroyed . | . . . Combat | -11 -10 -10 -------- Run | Yrd Mat Min Hostile Shots Fired 54 | . 43 11 Missed 15 | . 10 5 Damage Taken 542 | . 445 97 Core 91 | . 67 24 Absorbed by Shields . | . . . Core Remaining (%) 100 | 100 . . Volleys Fired 35 | . 22 13 Largest 2 | . 2 2 Hottest 100 | . 70 100 Shots Fired 69 | . 44 25 Gun 22 | . 22 . Cannon 45 | . 22 23 Launcher . | . . . Special 2 | . . 2 Kinetic 67 | . 44 23 Thermal 2 | . . 2 Explosive . | . . . Electromagnetic . | . . . Robot Hit Streak 5 | . 5 4 Robot Miss Streak 5 | . 5 2 Penetration Max . | . . . Secondary Targets . | . . . Shots Hit Robots 37 | . 22 15 Core Hits 19 | . 13 6 Critical Kills . | . . . Critical Parts Destroyed . | . . . Critical Strikes . | . . . Melee Attacks . | . . . Impact . | . . . Slashing . | . . . Piercing . | . . . Sneak Attacks . | . . . Combat Hostiles . | . . . Follow-up Attacks . | . . . Damage Inflicted 683 | . 406 277 Guns 144 | . 144 . Cannons 523 | . 246 277 Explosions . | . . . Melee . | . . . Ramming 16 | . 16 . Kinetic 667 | . 390 277 Thermal . | . . . Explosive . | . . . Electromagnetic . | . . . Impact . | . . . Slashing . | . . . Piercing . | . . . Highest Corruption 1 | . 1 1 Average Corruption 1 | . 1 1 Corruption Purged . | . . . Corruption Blocked . | . . . Effects 4 | . 2 2 Matter Fused 1 | . 1 . Energy Discharges 1 | . . 1 Misfires 1 | . . 1 Alerts 1 | . 1 . Overload Shots . | . . . Overflow Damage . | . . . Projectiles . | . . . Explosions . | . . . Melee . | . . . Knockbacks 6 | . 2 4 Impact . | . . . Kinetic 6 | . 2 4 Secondary . | . . . Self-Inflicted Damage . | . . . Shots . | . . . Rammed . | . . . Targets Rammed 4 | . 4 . Kicked 4 | . 4 . Crushed . | . . . Highest Temperature 150 | . 150 126 Average Temperature 50 | . 50 49 Received Heat Transfer 192 | . 132 60 Siege Activations . | . . . Robots Corrupted . | . . . Combat Hostiles . | . . . Parts Fried . | . . . Impact Corruptions . | . . . Robots Melted . | . . . Combat Hostiles . | . . . Parts Melted . | . . . Heat Transferred . | . . . Parts Sabotaged . | . . . Parts Stolen . | . . . Parts Stripped . | . . . Power Chain Reactions . | . . . Alert | -11 -10 -10 ------- Run | Yrd Mat Min Peak Influence 343 | . 244 343 Initial 94 | . . 94 Average 167 | . 136 207 Maximum Alert Level 1 | . 1 1 Low Security (%) 68 | 100 92 37 Level 1 31 | . 7 62 Level 2 . | . . . Level 3 . | . . . Level 4 . | . . . Level 5 . | . . . High Security . | . . . Max Security . | . . . Squads Dispatched 2 | . 2 . Investigation 2 | . 2 . Extermination . | . . . Reinforcement . | . . . Assault . | . . . Garrison . | . . . Intercept . | . . . Searches Triggered . | . . . Construction Impeded . | . . . Haulers Reinforced . | . . . Active Scanning Responses . | . . . Cargo Convoy Interrupts . | . . . Stealth | -11 -10 -10 --------- Run | Yrd Mat Min Distress Signals . | . . . Communications Jammed . | . . . Distress Signals . | . . . Times Spotted 29 | . 16 13 Peak Tracking Total 6 | . 4 6 Tactical Retreats 1 | . . 1 Traps | -11 -10 -10 ------- Run | Yrd Mat Min Traps Triggered 2 | . 2 . Indirectly . | . . . Trap Hack Attempts . | . . . Triggered . | . . . Disarmed . | . . . Reprogrammed . | . . . Reused . | . . . Traps Extracted . | . . . Installed . | . . . Triggered . | . . . Machines | -11 -10 -10 ---------- Run | Yrd Mat Min Machines Disabled 3 | . 2 1 Max in Single Turn 1 | . 1 . Machines Repaired . | . . . Machines Dismantled . | . . . Machines Sabotaged . | . . . Overloaded Fab Kills . | . . . Hacking | -11 -10 -10 --------- Run | Yrd Mat Min Machines Accessed 6 | . 6 . Terminals 4 | . 4 . Fabricators . | . . . Repair Stations 1 | . 1 . Recycling Units 1 | . 1 . Scanalyzers . | . . . Garrison Access . | . . . Total Hacks 14 | . 14 . Successful 7 | . 7 . Failed 6 | . 6 . Catastrophic 1 | . 1 . Database Lockouts 1 | . 1 . Manual 10 | . 10 . Terminals 11 | . 11 . Fabricators . | . . . Repair Stations 2 | . 2 . Recycling Units 1 | . 1 . Scanalyzers . | . . . Garrison Access . | . . . Terminal Hacks 3 | . 3 . Robot Analysis 2 | . 2 . Locate Traps 1 | . 1 . Fabricator Hacks . | . . . Repair Station Hacks 1 | . 1 . Refit 1 | . 1 . Recycling Unit Hacks . | . . . Scanalyzer . | . . . Garrison Access Hacks . | . . . Unauthorized Hacks 3 | . 3 . Terminals 2 | . 2 . Track 1 | . 1 . Disrupt 1 | . 1 . Fabricators . | . . . Repair Stations . | . . . Recycling Units 1 | . 1 . Tunnel 1 | . 1 . Scanalyzers . | . . . Garrison Access . | . . . Data Cores Recovered . | . . . Used . | . . . Hacking Detections 5 | . 5 . Full Trace Events 1 | . 1 . Feedback Events . | . . . Feedback Blocked . | . . . Robot Schematics Acquired . | . . . Robots Built . | . . . Authchips . | . . . Time . | . . . Total Robot Build Rating . | . . . Part Schematics Acquired . | . . . Parts Built . | . . . Authchips . | . . . Time . | . . . Total Part Build Rating . | . . . Parts Repaired . | . . . Time . | . . . Parts Recycled . | . . . Recycled Matter . | . . . Retrieved Matter . | . . . Retrieved Components . | . . . Parts Scanalyzed . | . . . Part Schematics Acquired . | . . . Parts Damaged . | . . . Bothacking | -11 -10 -10 ------------ Run | Yrd Mat Min Used RIF Installer . | . . . Robots Hacked . | . . . Non-combat . | . . . Combat . | . . . Robot Hacks Applied . | . . . Relay Couplers Released . | . . . Fabnet Peak Effective % . | . . . Robots Rewired . | . . . Allies Hacked . | . . . Hacks Repelled . | . . . Allies | -11 -10 -10 -------- Run | Yrd Mat Min Total Allies 3 | . 1 2 Largest Group 3 | . 1 3 Highest-Rated Group 107 | . 61 107 Highest-Rated Ally 61 | . 61 61 Total Orders . | . . . Ally Attacks 48 | . 22 26 Total Damage 707 | . 316 391 Kills 16 | . 8 8 Allies Corrupted . | . . . Allies Melted 1 | . . 1 Intel | -11 -10 -10 ------- Run | Yrd Mat Min Robot Analysis Total 2 | . 2 . Derelict Logs Recovered 1 | . . 1 Drone Launches . | . . . Drone Recoveries . | . . . Exploration | -11 -10 -10 ------------- Run | Yrd Mat Min Turns Passed 1279 | 2 721 556 Spaces Moved 644 | 2 377 265 Core . | . . . Treads . | . . . Legs 644 | 2 377 265 Wheels . | . . . Hover . | . . . Flight . | . . . Fastest Speed 120 | 120 120 190 Average Speed 162 | 120 142 190 Slowest Speed 190 | 120 190 190 Overloaded Moves . | . . . Propulsion Burnouts . | . . . Robots Hopped . | . . . Cave-ins Triggered . | . . . Exploration Rate (%) 40 | 2 62 57 Regions Visited 2 Branch Regions 1 Pre-discovered Areas 1 | . 1 . Known Exits Taken . | . . . Unknown Exits Taken 2 | 1 1 . Scrap Searched . | . . . Spaces Dug 2 | . . 2 Terrain Destroyed 2 | . . 2 Melee . | . . . Projectile 2 | . . 2 AOE . | . . . Terrain Rammed . | . . . Walls Destroyed . | . . . Machines Disabled . | . . . Actions | -11 -10 -10 --------- Run | Yrd Mat Min Total 812 | 1 520 291 Wait 97 | . 90 7 Move 642 | 1 376 265 Hop . | . . . Pick Up 16 | . 13 3 Fast Attach 3 | . 3 . Attach 1 | . . 1 Detach . | . . . Swap 4 | . 2 2 Drop 10 | . 10 . Fire 35 | . 22 13 Melee . | . . . Ram . | . . . Kick 4 | . 4 . Crush . | . . . Escape Stasis . | . . . Rewire . | . . . Trap . | . . . Miscellaneous . | . . . Route ------- -11/Scrapyard -10/Materials (discovered 2 exits: [*Mat] / [*Min]) -10/Mines (discovered 2 exits: [*Mat x2]) History --------- Turn | Location | Event 1 | -11/Scrapyard | Discovered new exit (range 1) 3 | -11/Scrapyard | Entered Materials 317 | -10/Materials | Build established: Mutant 324 | -10/Materials | Discovered new exit (range 7) 473 | -10/Materials | Discovered new exit (range 10) 611 | -10/Materials | Central database locked down 724 | -10/Materials | Entered Mines 782 | -10/Mines | Received a Rocket Launcher from a helpful Derelict 802 | -10/Mines | Discovered new exit (range 9) 1092 | -10/Mines | Discovered new exit (range 10) 1189 | -10/Mines | Learned Materials interactive machine intel 1231 | -10/Mines | Assembled infested the area 1236 | -10/Mines | Assisted by a Guerilla fighting off Assembled 1269 | -10/Mines | Core integrity fell below 50% 1277 | -10/Mines | Core integrity fell below 20% 1280 | -10/Mines | Core destroyed Last Messages --------------- 01214_ Acquired Targeting Computer. 01231_ ALERT: Infestation in the mines, dispatching Demolisher response squad. Player 2: "Okay we need to either get out of here fast, or hide and let 0b10 handle the infestation, then avoid the dispatch." 01236_ A derelict emerges from the shadows: "You need to get out of here! I've been tracking a group of Assembled to figure out where they're coming from, and they're closing on this area, come on!" 01241_ 87-BBT(h): "I'll hold them off! Go on ahead or try to find another way!" 01242_ XF-O0X(g) knocked back. 01262_ 87-BBT(h) knocked back. 01265_ HV Slug penetrates Wall. 01269_ HV Slug penetrates D-53 Grenadier. 01269_ D-53 Grenadier suffers critical hit (Destroy). 01269_ D-53 Grenadier knocked back. 01272_ 87-BBT(h) destroyed. 01274_ D-53 Grenadier knocked back. Map ----- +----------------------------------------------------+ | ????# #??????????????????# | | ????# ##??????????????????# | | ????## ### ##???????????????# ### | | ?????##??# #??###???????????# ???? | | ?????????# ### ##??????????# ##?????? | | ?????????# ##??????????????????? | | ?######### ## ###????????????????? | | ?# ## ## ##???????? ?????? | | ?# #### #??????? ?????? | | ?# ## #??# #?????? ????? | | ?# ## #?## ##????? ????? | | ?# ## ### """ #?????# ????? | | ?# ## # """ #???## ????? | | ?# """ ##?# ????? | | ?# ## ?????? | | ?# # ## ### #??????????? | | ?###### #####?## ##??????????? | | ??????# #??????### ##???????????? | | ??????# #????????## ##????????????? | | ??????# ####??????# ###?????????????? | | ??????# [*#??????# #???????????????? | | ??????#### ######?# #???????????????? | | ?????????#=#;# ### #???????????????? | | ?????????# ## ## ##??????????????? | | ?????????#*## ##?????????????? | | ?????????#%;;@ %##????????????? | | ?????????#[### ! d%% k##???????????? | | ?????????# #?## ! #####???????? | | ?????????# #??#### d% ##??????? | | ?????????# #??????# #??????? | | ?????????# #???????# #???? | | ?????????# #???????## #??? | | ?????????#*#????????# # #??? | | ??????####%###??????" #??# ? | | ??????# #??????# ??# ??? | | ??????# < #??????## ## #?# ??? | | ??????# #???????# #??#??????????? | | ??????# " " #???????# #?????????????? | | ??????# """ #???????# #?????????????? | | ??????# """ #???????# #?????????????? | | ??????# #???????# ?????????????? | | ??????########??????? ?????????????? | | ????????????????????? ?????????????? | | ????????????????????? ?????????????? | | ?????????????????????## ?????????????? | | ???????????????????????#?????????????? | | ?????????????????????????????????????? | | ?????????????????????????????????????? | | ?????????????????????????????????????? | | ?????????????????????????????????????? | +----------------------------------------------------+ Best States ------------- Heat Dissipation 25 Energy Generation 14 Energy Capacity 160 Matter Stores 300 Matter Capacity 300 Sight Range 16 Terrain Scan Density 10 Armor Coverage 80 Evasion (%) 55 Item Schematics ----------------- None Robot Schematics ------------------ None Fabricated ------------ Nothing Alien Tech Used ----------------- None Achievements -------------- None Challenges ------------ None Player 2 | -11 -10 -10 ---------- Run | Yrd Mat Min Slots Evolved . | . . . Power . | . . . Propulsion . | . . . Utility . | . . . Weapon . | . . . Parts Attached 17 | . 13 4 Parts Lost 6 | . . 6 Damage Taken 1041 | . 222 819 Core 172 | . 22 150 Player 2/Cogmind (%) 65 | . 24 86 Absorbed by Shields . | . . . Damage Inflicted 559 | . 316 243 Player 2/Cogmind (%) 45 | . 43 46 Combat Hostiles Destroyed 11 | . 5 6 Player 2/Cogmind (%) 55 | . 45 66 Game ------ Seed CoilAntigravLance Manual? 0 Play Time 00:07:07 Cumulative 1545.8 hours Start 2024.04.30 @ 19:52:25 End 2024.04.30 @ 19:59:16 Sessions 1 Manual Loads 0 Difficulty Rogue Special Mode AFD2020/Player2 Game No. 1065 Rogue 1061 Adventurer 4 Explorer 0 Win Type - Total 194 Types 142/11/14/9/2/1/3/8/4 Lore% 96 Gallery% 99 Achievement% 98 Wizard Run 0 Options --------- Layout 2 ASCII 0 Keyboard 1 Movement Vi Keybinds 0 Fullscreen 0 Font 24/Terminus Map View 59x48 Zoom Use 0% Tactical HUD 1 Map Filters NONE Filters NONE Steam 1 RUN: 9c490361-7aad-43ab-b188-33536cb18a46